bitfinex-derivatives/quotes_ETHF0:USTF0_20241027
["timestamp","ask_amount","ask_price","bid_price","bid_amount"]
[1729987201666,3.2078,2484.4,2484.1,1.06794706]
[1729987203272,3.2078,2484.4,2484.1,0.4378]
[1729987204585,0.4444,2484.6,2484.1,0.4378]
[1729987206678,2.8563,2484.7,2484.1,0.4378]
[1729987207881,2.8563,2484.7,2484.2,4.034]
[1729987208069,2.8563,2484.7,2484.4,4.034]
[1729987208779,2.8563,2484.7,2484.4,4.4702]
[1729987214178,2.4422,2484.7,2484.4,4.4702]
[1729987215585,3.2078,2485.0,2484.4,4.4702]
[1729987215981,7.80608011,2485.0,2484.4,4.4702]
[1729987216182,0.812,2484.9,2484.4,4.4702]
[1729987217683,1.30647091,2484.8,2484.7,4.034]
[1729987217884,1.30647091,2484.8,2484.7,4.4676]
[1729987218080,1.30647091,2484.8,2484.7,4.8752]
[1729987218485,0.813,2484.8,2484.7,6.18167091]
[1729987218781,3.2078,2485.3,2484.7,6.18167091]
[1729987218987,0.813,2485.2,2484.9,4.034]
[1729987219187,0.813,2485.2,2485.0,5.77407091]
[1729987219382,1.30647091,2485.1,2485.0,5.77407091]
[1729987219586,2.11947091,2485.1,2485.0,5.77407091]
[1729987220486,1.30647091,2485.1,2485.0,5.77407091]
[1729987222791,2.11947091,2485.2,2485.0,5.77407091]
[1729987224382,2.11947091,2485.2,2485.0,1.74007091]
[1729987224587,1.30647091,2485.1,2485.0,1.74007091]
[1729987225890,1.72577091,2485.1,2485.0,1.74007091]
[1729987227392,1.72577091,2485.1,2484.7,3.2078]
[1729987227599,1.30647091,2484.9,2484.7,4.51427091]
[1729987227887,1.30647091,2484.8,2484.6,1.73427091]
[1729987228092,1.72607091,2484.8,2484.7,1.30647091]
[1729987228709,0.4196,2484.8,2484.7,1.30647091]
[1729987228993,1.72607091,2484.8,2484.7,1.30647091]
[1729987230691,2.12897091,2484.8,2484.7,1.70939091]
[1729987234496,2.12897091,2484.8,2484.7,2.11909091]
[1729987235097,0.8225,2484.8,2484.7,2.11909091]
[1729987235502,0.8225,2484.8,2484.7,2.53419091]
[1729987236995,2.12897091,2484.8,2484.7,0.8248]
[1729987237293,0.40294,2484.6,2484.5,0.40294]
[1729987237491,1.21594,2484.6,2484.5,1.70941091]
[1729987249205,0.813,2484.6,2484.5,1.70941091]
[1729987251104,0.40291,2484.8,2484.7,0.40291]
[1729987251406,4.51427091,2484.9,2484.5,0.40295]
[1729987251407,0.815,2484.6,2484.5,0.40295]
[1729987251709,0.815,2484.6,2484.5,3.61075]
[1729987251908,0.815,2484.6,2484.5,7.63555]
[1729987252711,0.815,2484.6,2484.5,8.94202091]
[1729987253305,0.40291,2484.8,2484.5,8.53907091]
[1729987253505,0.40291,2484.8,2484.7,1.70939091]
[1729987253705,1.21791,2484.8,2484.7,1.70939091]
[1729987254002,0.815,2484.8,2484.7,1.70939091]
[1729987257202,1.2179,2484.8,2484.7,1.70939091]
[1729987257705,0.815,2484.8,2484.7,1.70939091]
[1729987257911,1.2179,2484.8,2484.7,1.70939091]
[1729987258610,0.815,2484.8,2484.7,1.70939091]
[1729987258813,2.12147091,2484.8,2484.6,1.30647091]
[1729987258999,0.40294,2484.6,2484.5,0.40295]
[1729987259204,1.70941091,2484.6,2484.4,1.68956]
[1729987259405,0.4316,2484.5,2484.4,1.68956]
[1729987259806,0.4316,2484.5,2484.4,2.99603091]
[1729987261414,0.83455,2484.5,2484.4,2.99603091]
[1729987261816,1.64955,2484.5,2484.4,2.99603091]
[1729987262317,1.2466,2484.5,2484.4,2.99603091]
[1729987262710,0.815,2484.5,2484.4,2.99603091]
[1729987265218,1.21795,2484.5,2484.4,2.99603091]
[1729987267523,0.815,2484.5,2484.4,2.99603091]
[1729987267822,1.21795,2484.5,2484.4,2.99603091]
[1729987269822,0.815,2484.5,2484.4,2.99603091]
[1729987270522,1.21795,2484.5,2484.4,2.99603091]
[1729987270718,2.52442091,2484.5,2484.4,1.2866]
[1729987271022,1.21795,2484.5,2484.4,2.59307091]
[1729987272146,2.52442091,2484.5,2484.4,1.2866]
[1729987272344,2.93352091,2484.5,2484.4,1.2866]
[1729987272540,2.93352091,2484.5,2484.4,2.59307091]
[1729987277537,2.93352091,2484.5,2484.4,0.8631]
[1729987280019,7.86184182,2484.5,2483.9,4.26489004]
[1729987280222,1.30647091,2484.1,2484.0,2.95430091]
[1729987280430,0.40302,2484.1,2484.0,2.95430091]
[1729987281335,0.40302,2484.1,2484.0,2.55127091]
[1729987283228,0.40302,2484.1,2484.0,2.95430091]
[1729987283430,1.70949091,2484.1,2484.0,1.64783]
[1729987283732,1.70949091,2484.1,2484.0,1.2448]
[1729987285326,1.30647091,2484.1,2484.0,1.64783]
[1729987287231,1.70949091,2484.1,2484.0,1.64783]
[1729987287831,1.70949091,2484.1,2484.0,1.2448]
[1729987288733,1.30647091,2484.1,2484.0,1.2448]
[1729987289035,1.70949091,2484.1,2484.0,1.2448]
[1729987291131,1.70949091,2484.1,2484.0,0.8368]
[1729987292637,1.70949091,2484.1,2484.0,0.4209]
[1729987292638,5.73509091,2484.1,2484.0,0.4209]
[1729987294134,5.73509091,2484.1,2483.8,0.4427]
[1729987294135,0.40305,2483.9,2483.8,0.4427]
[1729987294337,2.52452091,2483.9,2483.8,0.4427]
[1729987299533,1.00767,2483.8,2483.1,3.2078]
[1729987299735,0.40315,2483.3,2483.2,1.3001]
[1729987299939,2.52462091,2483.3,2483.2,1.3001]
[1729987302938,0.40321,2482.9,2482.8,3.2078]
[1729987303133,0.40321,2482.9,2482.8,0.84783]
[1729987303348,1.70968091,2482.9,2482.8,0.4446]
[1729987303840,1.70968091,2482.9,2482.8,0.8558]
[1729987305243,0.40326,2482.6,2482.5,3.6338]
[1729987305438,2.52473091,2482.6,2482.5,4.03708]
[1729987305748,2.52473091,2482.6,2482.5,3.6338]
[1729987306445,2.12147091,2482.6,2482.5,4.03708]
[1729987306942,2.52473091,2482.6,2482.5,3.6338]
[1729987307946,2.52473091,2482.6,2482.5,0.426]
[1729987308653,2.52473091,2482.6,2482.5,0.82928]
[1729987309856,2.12147091,2482.6,2482.5,0.82928]
[1729987314060,3.2078,2483.0,2482.5,4.454]
[1729987314260,1.22122,2482.9,2482.5,0.426]
[1729987314460,1.30647091,2482.6,2482.5,0.426]
[1729987314648,1.30647091,2482.6,2482.5,0.82928]
[1729987314853,1.30647091,2482.6,2482.5,4.85728]
[1729987321267,1.30647091,2482.6,2482.5,0.82928]
[1729987324564,1.30647091,2482.6,2482.5,4.85728]
[1729987325866,3.2078,2483.2,2483.1,0.40318]
[1729987326064,5.33227091,2483.2,2483.1,0.40318]
[1729987326463,0.4032,2483.0,2482.9,0.8763]
[1729987326659,0.4032,2483.0,2482.9,1.27951]
[1729987326864,3.01614182,2483.0,2482.9,0.8763]
[1729987327059,3.01614182,2483.0,2482.9,0.4307]
[1729987327260,2.61294182,2483.0,2482.7,0.4456]
[1729987327462,0.40323,2482.9,2482.8,0.40322]
[1729987327783,1.22123,2482.9,2482.8,0.40322]
[1729987328162,2.52770091,2482.9,2482.8,0.40322]
[1729987328368,2.52770091,2482.9,2482.7,0.4456]
[1729987328369,2.12447091,2482.9,2482.7,0.4456]
[1729987328666,2.11970091,2482.8,2482.7,0.4456]
[1729987328968,1.71647091,2482.8,2482.7,0.84885]
[1729987329360,2.11970091,2482.8,2482.7,0.4456]
[1729987329557,2.11970091,2482.8,2482.7,0.84885]
[1729987329759,2.11970091,2482.8,2482.7,0.4456]
[1729987330070,2.11970091,2482.8,2482.7,0.84885]
[1729987332871,1.22122,2482.9,2482.7,0.4456]
[1729987333065,1.30647091,2482.8,2482.7,0.84885]
[1729987333874,1.70970091,2482.8,2482.7,0.40325]
[1729987335077,1.30647091,2482.8,2482.7,0.40325]
[1729987336089,0.4448,2483.0,2482.6,1.2717]
[1729987336286,0.848,2483.0,2482.9,0.40321]
[1729987336577,2.97247091,2483.0,2482.9,0.40321]
[1729987337968,2.97247091,2483.0,2482.8,0.40322]
[1729987338169,2.97247091,2483.0,2482.8,0.40323]
[1729987338170,1.30647091,2482.9,2482.8,0.40323]
[1729987339682,2.12447091,2482.9,2482.8,0.40323]
[1729987340674,2.12547091,2482.9,2482.8,0.40323]
[1729987344865,1.30647091,2482.9,2482.8,0.40323]
[1729987345071,2.12547091,2482.9,2482.8,0.40323]
[1729987347569,2.12547091,2482.9,2482.8,4.43123]
[1729987347871,2.12547091,2482.9,2482.8,5.06166591]
[1729987348075,0.4225,2483.3,2483.2,0.40316]
[1729987348378,2.12547091,2483.3,2483.2,0.40316]
[1729987349581,2.52862091,2483.3,2483.2,0.40316]
[1729987349776,1.22215,2483.3,2483.2,0.40316]
[1729987350078,2.52862091,2483.3,2483.2,0.40316]
[1729987350677,2.12547091,2483.3,2483.2,0.40316]
[1729987352989,1.30647091,2483.3,2483.2,0.40316]
[1729987353281,0.40311,2483.6,2483.0,1.86628]
[1729987353581,1.30647091,2483.1,2483.0,1.2615]
[1729987353778,1.30647091,2483.1,2483.0,1.89186462]
[1729987354078,1.30647091,2483.1,2483.0,5.2887]
[1729987354383,1.30647091,2483.1,2483.0,5.91906637]
[1729987354582,1.30647091,2483.1,2483.0,5.2887]
[1729987354975,1.30647091,2483.1,2483.0,5.91906515]
[1729987355284,3.61089,2483.7,2483.6,0.4031]
[1729987355584,7.04283182,2483.7,2483.6,0.4031]
[1729987357378,6.63974182,2483.7,2483.6,0.4031]
[1729987360784,3.43194182,2483.7,2483.6,0.4031]
[1729987361283,0.40311,2483.6,2483.4,1.24733]
[1729987361482,1.30647091,2483.5,2483.4,0.80893]
[1729987361683,2.14199091,2483.5,2483.4,0.80893]
[1729987361882,1.73887091,2483.5,2483.4,0.80893]
[1729987362887,2.14199091,2483.5,2483.4,0.80893]
[1729987370191,1.73887091,2483.5,2483.4,0.80893]
[1729987370593,2.14199091,2483.5,2483.4,0.80893]
[1729987372191,1.73887091,2483.5,2483.4,0.80893]
[1729987372390,2.14199091,2483.5,2483.4,0.80893]
[1729987374802,1.73887091,2483.5,2483.4,0.80893]
[1729987378000,1.30647091,2483.5,2483.4,0.80893]
[1729987380393,1.30647091,2483.5,2482.9,2.36254675]
[1729987380394,0.40315,2483.3,2483.0,0.40318]
[1729987380595,1.70965091,2483.1,2483.0,0.40318]
[1729987381092,2.15097091,2483.1,2483.0,0.4032]
[1729987381494,1.74777091,2483.1,2482.9,1.2905]
[1729987381696,1.70967091,2483.0,2482.9,1.69371]
[1729987382297,1.70967091,2483.0,2482.9,1.2905]
[1729987382500,1.70967091,2483.0,2482.9,0.83891]
[1729987384704,1.30647091,2483.0,2482.9,0.83891]
[1729987385298,1.70967091,2483.0,2482.9,0.83891]
[1729987386398,3.2078,2483.3,2482.9,0.4357]
[1729987386606,3.2078,2483.3,2483.2,0.40316]
[1729987386796,2.52762091,2483.3,2483.2,0.40316]
[1729987388105,2.52762091,2483.3,2483.1,0.40317]
[1729987388306,0.818,2483.3,2483.2,0.40316]
[1729987388609,2.12447091,2483.3,2483.2,0.40316]
[1729987393102,2.52762091,2483.3,2483.2,0.40316]
[1729987393710,2.12447091,2483.3,2483.2,0.40316]
[1729987401009,2.55137091,2483.3,2483.2,0.40316]
[1729987404215,2.12447091,2483.3,2483.2,0.40316]
[1729987410625,2.52762091,2483.3,2483.2,0.40316]
[1729987412428,0.40318,2483.2,2483.1,0.40317]
[1729987412631,1.70965091,2483.2,2483.1,1.03355569]
[1729987414930,1.30647091,2483.2,2483.1,1.03355569]
[1729987419035,1.30647091,2483.2,2483.1,1.03354393]
[1729987423036,1.30647091,2483.2,2483.1,1.03355426]
[1729987423538,1.30647091,2483.2,2483.1,1.03355156]
[1729987431139,1.30647091,2483.2,2483.1,1.03354143]
[1729987431341,1.30647091,2483.2,2483.1,2.04213573]
[1729987435040,1.30647091,2483.2,2483.1,2.09215724]
[1729987435246,1.30647091,2483.2,2483.1,3.10075231]
[1729987435944,1.70963091,2483.2,2483.1,3.10075231]
[1729987436142,2.11683091,2483.2,2483.1,1.03354192]
[1729987436642,1.71367091,2483.2,2483.1,1.03354192]
[1729987438958,1.71367091,2483.2,2483.1,0.40317]
[1729987439252,1.71367091,2483.2,2483.1,1.03355264]
[1729987441745,1.71367091,2483.2,2483.1,1.03355283]
[1729987443255,1.30647091,2483.2,2483.1,1.03355283]
[1729987444655,1.30647091,2483.2,2483.1,0.40317]
[1729987445141,1.30647091,2483.3,2483.1,4.0272]
[1729987445351,0.815,2483.3,2483.2,1.46177532]
[1729987445953,2.12147091,2483.3,2483.2,1.46177532]
[1729987446541,2.12147091,2483.3,2483.2,3.10064355]
[1729987446950,2.12147091,2483.3,2483.2,1.46177532]
[1729987448152,2.12147091,2483.3,2483.2,4.73951519]
[1729987448350,2.12147091,2483.3,2483.2,3.68089987]
[1729987448657,2.12147091,2483.3,2483.2,4.73951519]
[1729987449254,2.12147091,2483.3,2483.2,3.68089987]
[1729987450747,2.12147091,2483.3,2483.2,2.67236455]
[1729987451550,1.30647091,2483.4,2483.3,0.40315]
[1729987451751,1.30647091,2483.4,2483.3,1.91068457]
[1729987451950,1.30647091,2483.4,2483.3,5.93788457]
[1729987453950,1.70960091,2483.4,2483.3,5.93788457]
[1729987455653,1.30647091,2483.4,2483.3,5.93788457]
[1729987455853,1.30647091,2483.4,2483.3,5.93788531]
[1729987455854,1.70960091,2483.4,2483.3,5.93788531]
[1729987457172,1.70960091,2483.4,2483.3,1.91068531]
[1729987458357,1.30647091,2483.4,2483.3,1.91068531]
[1729987459163,1.70960091,2483.4,2483.3,1.91068531]
[1729987459558,1.70960091,2483.4,2483.3,1.91069012]
[1729987459758,1.30647091,2483.4,2483.3,1.91069012]
[1729987460060,1.70960091,2483.4,2483.3,1.91069012]
[1729987463066,1.30647091,2483.4,2483.3,1.91069012]
[1729987470371,1.70960091,2483.4,2483.3,1.91069012]
[1729987470770,1.30647091,2483.4,2483.3,1.91069012]
[1729987471357,1.70960091,2483.4,2483.3,1.91069012]
[1729987472174,1.30647091,2483.4,2483.3,1.91069012]
[1729987475961,1.30647091,2483.5,2483.3,1.50754012]
[1729987476269,1.30647091,2483.5,2483.4,1.03347012]
[1729987477666,1.30647091,2483.5,2483.4,0.40313]
[1729987477865,1.30647091,2483.5,2483.4,1.03344355]
[1729987479470,1.30647091,2483.5,2483.4,1.11624355]
[1729987481274,1.30647091,2483.5,2483.4,2.42271446]
[1729987481467,1.30647091,2483.5,2483.4,2.42270373]
[1729987481876,1.30647091,2483.5,2483.4,2.42270302]
[1729987482474,2.12047091,2483.6,2483.5,0.40312]
[1729987482779,2.12047091,2483.6,2483.5,2.33989302]
[1729987482969,2.12047091,2483.6,2483.5,2.77299302]
[1729987484669,2.12047091,2483.6,2483.5,2.86309302]
[1729987485080,2.12047091,2483.6,2483.5,2.23279091]
[1729987485382,2.12047091,2483.6,2483.5,2.86307899]
[1729987486978,1.30647091,2483.6,2483.5,2.86307899]
[1729987487189,4.034,2487.3,2483.9,0.40305]
[1729987487190,1.30647091,2484.0,2483.9,0.40305]
[1729987487779,1.30647091,2484.0,2483.9,1.0332375]
[1729987488082,1.30647091,2484.0,2483.9,1.4631375]
[1729987488476,1.30647091,2484.0,2483.9,2.76960841]
[1729987488776,1.30647091,2484.0,2483.9,2.13942091]
[1729987488976,1.30647091,2484.0,2483.9,2.76958802]
[1729987489276,1.30647091,2484.0,2483.9,2.13942091]
[1729987491583,1.30647091,2484.0,2483.9,0.83295]
[1729987494475,1.30647091,2484.0,2483.9,2.13942091]
[1729987494675,1.30647091,2484.0,2483.9,5.34722091]
[1729987497783,1.30647091,2484.0,2483.9,5.43002091]
[1729987499390,1.30647091,2484.0,2483.9,2.22222091]
[1729987500489,1.30647091,2484.0,2483.9,5.43002091]
[1729987501482,1.30647091,2484.0,2483.9,2.22222091]
[1729987501689,1.30647091,2484.0,2483.9,5.43002091]
[1729987502083,1.30647091,2484.0,2483.9,2.22222091]
[1729987502583,1.30647091,2484.0,2483.9,5.43002091]
[1729987503187,1.30647091,2484.0,2483.9,2.22222091]
[1729987503388,1.30647091,2484.0,2483.9,5.43002091]
[1729987506494,1.30647091,2484.0,2483.9,2.22222091]
[1729987506794,1.30647091,2484.0,2483.9,5.43002091]
[1729987507394,1.30647091,2484.0,2483.9,5.52002091]
[1729987508291,1.30647091,2484.0,2483.9,2.31222091]
[1729987508497,1.30647091,2484.0,2483.9,5.52002091]
[1729987508796,1.30647091,2484.0,2483.9,2.31222091]
[1729987509296,1.30647091,2484.0,2483.9,5.52002091]
[1729987514590,1.30647091,2484.0,2483.9,2.31222091]
[1729987515086,1.30647091,2484.0,2483.9,5.52002091]
[1729987515600,2.11947091,2484.1,2484.0,0.40303]
[1729987515797,2.11947091,2484.1,2484.0,0.85163]
[1729987516003,2.11947091,2484.1,2484.0,1.26783]
[1729987523108,2.11947091,2484.1,2484.0,1.35783]
[1729987524701,2.11947091,2484.1,2484.0,1.44063]
[1729987530403,2.11947091,2484.1,2484.0,2.07078524]
[1729987533407,2.11947091,2484.1,2484.0,3.07903162]
[1729987533913,2.11947091,2484.1,2484.0,2.07078524]
[1729987534300,2.11947091,2484.1,2484.0,2.07079084]
[1729987534910,2.11947091,2484.1,2484.0,3.07904245]
[1729987538012,2.11947091,2484.1,2484.0,3.07903348]
[1729987541817,2.11947091,2484.1,2484.0,1.44063]
[1729987542010,2.11947091,2484.1,2484.0,2.07080231]
[1729987543211,2.11947091,2484.1,2484.0,3.07905634]
[1729987543821,2.52249091,2484.1,2484.0,0.80297231]
[1729987544014,6.54809091,2484.1,2484.0,0.1728]
[1729987544311,0.40309,2483.7,2483.6,0.40309]
[1729987544513,1.70956091,2483.7,2483.5,0.40311]
[1729987544719,1.70956091,2483.7,2483.4,1.90455703]
[1729987544720,2.11947091,2483.6,2483.4,1.90455703]
[1729987544916,0.813,2483.6,2483.5,1.03342301]
[1729987545121,1.2161,2483.6,2483.5,0.63030301]
[1729987545317,1.2161,2483.6,2483.3,1.48725703]
[1729987545318,0.40313,2483.5,2483.3,0.83274]
[1729987545619,0.40312,2483.5,2483.4,0.40313]
[1729987545817,0.40312,2483.5,2483.3,0.83274]
[1729987546016,1.30647091,2483.4,2483.3,0.83274]
[1729987546222,1.70960091,2483.4,2483.3,0.83274]
[1729987546521,1.30647091,2483.4,2483.3,0.83274]
[1729987546722,0.40313,2483.5,2483.4,0.40313]
[1729987546924,1.70960091,2483.5,2483.4,0.40313]
[1729987547229,5.73600091,2483.5,2483.4,0.40313]
[1729987547418,6.15560091,2483.5,2483.4,0.40313]
[1729987551124,2.12920091,2483.5,2483.4,0.40313]
[1729987551628,1.72607091,2483.5,2483.4,0.40313]
[1729987551921,2.12919091,2483.5,2483.4,0.40313]
[1729987552419,1.72607091,2483.5,2483.4,0.40313]
[1729987552630,2.12919091,2483.5,2483.4,0.40313]
[1729987555729,1.72607091,2483.5,2483.4,0.82783]
[1729987556126,2.12919091,2483.5,2483.4,0.82783]
[1729987557019,2.12919091,2483.5,2483.4,0.40313]
[1729987565432,1.70959091,2483.5,2483.4,0.40313]
[1729987566832,1.30647091,2483.5,2483.4,0.40313]
[1729987567135,1.30647091,2483.5,2483.3,1.73607091]
[1729987567136,0.40313,2483.4,2483.3,0.4296]
[1729987567336,2.11860091,2483.4,2483.3,0.4296]
[1729987568133,5.74267091,2483.4,2483.2,3.6325]
[1729987568339,1.70962091,2483.3,2483.2,3.2078]
[1729987568740,5.73682091,2483.3,2483.2,3.2078]
[1729987569040,0.40316,2483.2,2483.1,0.83037]
[1729987569235,1.70963091,2483.2,2483.1,0.4272]
[1729987569748,0.40318,2483.1,2483.0,4.0641]
[1729987569939,2.96995091,2483.1,2483.0,4.0641]
[1729987570327,2.96995091,2483.1,2483.0,4.4673]
[1729987570533,2.52265091,2483.1,2483.0,4.4673]
[1729987570733,1.21618,2483.1,2483.0,4.4673]
[1729987570934,2.52265091,2483.1,2483.0,4.4673]
[1729987572931,2.52265091,2483.1,2483.0,1.2595]
[1729987575334,0.813,2483.1,2483.0,2.56597091]
[1729987575938,0.40315,2483.3,2483.2,0.40315]
[1729987576140,2.52262091,2483.3,2483.2,1.70962091]
[1729987576337,2.52262091,2483.3,2483.2,0.40315]
[1729987576636,2.52262091,2483.3,2483.2,1.70962091]
[1729987577032,2.52262091,2483.3,2483.2,0.40315]
[1729987577433,1.30647091,2483.3,2483.2,1.70962091]
[1729987577640,0.813,2483.3,2483.2,1.70963091]
[1729987577844,2.11947091,2483.3,2483.2,1.70963091]
[1729987579343,2.52262091,2483.3,2483.2,1.70963091]
[1729987579945,1.70962091,2483.3,2483.2,1.70963091]
[1729987580142,2.11947091,2483.3,2483.2,1.70963091]
[1729987580845,2.52262091,2483.3,2483.2,1.70963091]
[1729987581646,2.11947091,2483.3,2483.2,1.70963091]
[1729987582068,1.70961091,2483.4,2483.3,0.40315]
[1729987582243,0.813,2483.4,2483.3,0.84285]
[1729987582449,2.11947091,2483.4,2483.3,2.14932091]
[1729987582943,2.52260091,2483.4,2483.3,2.14932091]
[1729987585648,1.70960091,2483.4,2483.3,2.14932091]
[1729987585842,2.52860091,2483.4,2483.3,2.14932091]
[1729987586547,2.12547091,2483.4,2483.3,2.14932091]
[1729987589442,2.12547091,2483.4,2483.3,2.77964207]
[1729987596056,2.12547091,2483.4,2483.3,3.18714207]
[1729987596679,2.12547091,2483.4,2483.3,2.55682091]
[1729987596860,2.12547091,2483.4,2483.3,3.1871517]
[1729987600153,2.52860091,2483.4,2483.3,0.8472]
[1729987600353,0.40315,2483.3,2483.2,0.40316]
[1729987600559,1.70962091,2483.3,2483.2,0.63036505]
[1729987600761,1.70962091,2483.3,2483.2,1.03352505]
[1729987602458,1.70962091,2483.3,2483.2,0.63036505]
[1729987602652,1.70962091,2483.3,2483.2,1.03352505]
[1729987603662,1.70962091,2483.3,2483.2,0.40316]
[1729987603960,1.70962091,2483.3,2483.2,1.03352613]
[1729987607661,1.70962091,2483.3,2483.2,0.40316]
[1729987607967,1.70962091,2483.3,2483.2,1.03353184]
[1729987611066,1.70962091,2483.3,2483.1,3.2078]
[1729987611067,5.33367091,2483.3,2483.1,3.2078]
[1729987611364,0.40315,2483.3,2483.2,0.40316]
[1729987611565,0.40316,2483.2,2483.1,3.61097]
[1729987611764,1.70963091,2483.2,2483.1,3.61097]
[1729987612567,0.4286,2483.4,2483.3,0.40315]
[1729987612763,2.55407091,2483.4,2483.3,0.40315]
[1729987614170,2.95721091,2483.4,2483.3,0.40315]
[1729987615965,2.55407091,2483.4,2483.1,1.30647091]
[1729987616271,0.40316,2483.3,2483.2,0.40316]
[1729987617969,1.70963091,2483.3,2483.2,1.03352686]
[1729987619265,1.30647091,2483.3,2483.2,1.03352686]
[1729987619971,1.70962091,2483.3,2483.2,1.03352686]
[1729987621174,1.70962091,2483.3,2483.2,0.40316]
[1729987621369,1.70962091,2483.3,2483.2,1.03352332]
[1729987621775,1.70962091,2483.3,2483.2,0.63036332]
[1729987621974,2.15412091,2483.3,2483.2,0.63036332]
[1729987622667,2.15412091,2483.3,2483.2,1.03352332]
[1729987623975,2.15412091,2483.3,2483.2,0.63036332]
[1729987624473,2.15412091,2483.3,2483.2,1.03352332]
[1729987624779,2.15412091,2483.3,2483.2,1.03352542]
[1729987624972,2.15412091,2483.3,2483.2,0.63036542]
[1729987625475,2.15412091,2483.3,2483.2,1.03352542]
[1729987627271,2.15412091,2483.3,2483.2,0.63036542]
[1729987627475,2.15412091,2483.3,2483.2,1.03352542]
[1729987631595,2.15412091,2483.3,2483.2,0.40316]
[1729987632879,2.15412091,2483.3,2483.2,1.03352579]
[1729987633279,1.75097091,2483.3,2483.2,1.03352579]
[1729987633477,2.15412091,2483.3,2483.2,1.03352579]
[1729987634775,1.30647091,2483.3,2483.2,1.03352579]
[1729987635580,1.70962091,2483.3,2483.2,1.03352579]
[1729987636584,1.70962091,2483.3,2483.2,0.63036579]
[1729987636776,0.40318,2483.1,2483.0,0.4032]
[1729987636976,0.40318,2483.1,2483.0,1.03360891]
[1729987636977,1.70965091,2483.1,2483.0,1.03360891]
[1729987638981,1.70965091,2483.1,2483.0,0.63040891]
[1729987639287,0.4032,2483.0,2482.9,1.2515]
[1729987639494,0.4032,2483.0,2482.9,1.46914168]
[1729987639495,2.11507091,2483.0,2482.9,1.46914168]
[1729987639783,6.14227091,2483.0,2482.9,0.8387]
[1729987640179,2.11507091,2483.0,2482.9,0.8387]
[1729987641276,2.11507091,2483.0,2482.7,4.05783]
[1729987641277,0.40323,2482.8,2482.7,4.05783]
[1729987641476,2.52770091,2482.8,2482.7,5.54251772]
[1729987642984,2.52770091,2482.8,2482.7,5.13928772]
[1729987643480,2.52770091,2482.8,2482.7,1.93148772]
[1729987643979,2.52770091,2482.8,2482.7,2.33473772]
[1729987644380,2.52770091,2482.8,2482.7,1.70425]
[1729987644682,2.52770091,2482.8,2482.7,2.33474078]
[1729987645079,6.55570091,2482.8,2482.7,1.301]
[1729987646779,6.55570091,2482.8,2482.7,1.70425]
[1729987647680,6.55570091,2482.8,2482.7,1.301]
[1729987650181,2.52770091,2482.8,2482.7,1.301]
[1729987651381,10.72881702,2482.8,2482.3,3.2078]
[1729987651583,0.40334,2482.1,2482.0,1.2421]
[1729987651885,2.52581091,2482.1,2482.0,1.2421]
[1729987654184,6.15127091,2482.1,2481.5,3.2078]
[1729987654390,1.30647091,2481.8,2481.6,1.72817091]
[1729987654586,1.30647091,2482.0,2481.7,1.30647091]
[1729987654893,1.30647091,2482.0,2481.8,0.83819]
[1729987654894,0.816,2481.9,2481.8,0.83819]
[1729987655190,1.30647091,2482.0,2481.9,0.40338]
[1729987655391,2.12247091,2482.0,2481.9,2.14795091]
[1729987655593,2.12247091,2482.0,2481.9,2.56965091]
[1729987656485,3.2078,2482.3,2482.1,0.40333]
[1729987656486,0.40332,2482.3,2482.1,0.40333]
[1729987656684,0.40332,2482.3,2482.2,0.4348]
[1729987656885,5.24812,2482.3,2482.2,0.8641]
[1729987658579,6.55459091,2482.3,2482.2,0.8641]
[1729987659987,6.55459091,2482.3,2482.2,1.26743]
[1729987660191,6.55459091,2482.3,2482.2,0.8641]
[1729987660589,5.73859091,2482.3,2482.2,0.8641]
[1729987660789,6.55459091,2482.3,2482.2,0.8641]
[1729987660988,1.70979091,2482.3,2482.2,0.8641]
[1729987661196,2.52579091,2482.3,2482.2,0.8641]
[1729987661487,2.52579091,2482.3,2482.2,1.26743]
[1729987661697,3.617,2482.6,2482.3,0.4033]
[1729987661896,1.21928,2482.5,2482.4,0.4137]
[1729987663097,2.52575091,2482.5,2482.4,0.4137]
[1729987669406,5.73355091,2482.5,2482.4,0.4137]
[1729987671504,2.52575091,2482.5,2482.4,0.4137]
[1729987671999,2.12247091,2482.5,2482.2,0.8641]
[1729987672209,1.70978091,2482.3,2482.2,1.26743]
[1729987680006,3.01625182,2482.3,2482.2,0.8641]
[1729987680903,7.04505182,2482.3,2482.2,0.8641]
[1729987681106,5.73858091,2482.3,2482.2,0.8641]
[1729987681300,1.70978091,2482.3,2482.2,1.26743]
[1729987682512,1.30647091,2482.3,2482.2,1.26743]
[1729987683111,1.70978091,2482.3,2482.2,1.26743]
[1729987687721,1.70978091,2482.3,2482.2,0.8641]
[1729987690214,3.01625182,2482.3,2482.2,0.8641]
[1729987692616,1.70978091,2482.3,2482.2,0.8641]
[1729987692811,3.01625182,2482.3,2482.2,0.8641]
[1729987695412,1.70978091,2482.3,2482.2,0.8641]
[1729987696522,3.01625182,2482.3,2482.2,0.8641]
[1729987696915,3.83325182,2482.3,2482.2,0.8641]
[1729987699424,7.45874182,2482.3,2481.9,3.2078]
[1729987699618,1.70983091,2482.0,2481.9,3.2078]
[1729987699922,1.70983091,2482.0,2481.8,1.28]
[1729987699923,0.40338,2481.9,2481.8,1.28]
[1729987700220,1.70985091,2481.9,2481.8,1.28]
[1729987700418,1.00849,2481.8,2481.4,1.0542413]
[1729987700617,0.40351,2481.1,2480.9,5.1388413]
[1729987700824,2.12347091,2481.0,2480.9,4.48814]
[1729987701021,2.12347091,2481.0,2480.9,6.17330209]
[1729987701523,2.12347091,2481.0,2480.9,5.11906079]
[1729987702419,2.12347091,2481.0,2480.9,4.48814]
[1729987703123,3.2078,2481.5,2480.9,9.42147091]
[1729987703317,0.817,2481.4,2481.0,1.71677091]
[1729987703516,0.817,2481.4,2481.3,0.40346]
[1729987704616,2.12347091,2481.4,2481.3,0.40347]
[1729987704827,1.30647091,2481.4,2481.3,0.40347]
[1729987705020,2.12347091,2481.4,2481.3,0.40347]
[1729987706827,2.12347091,2481.4,2481.3,1.68887]
[1729987716933,2.52693091,2481.4,2481.3,1.68887]
[1729987718134,0.817,2481.4,2481.3,1.68887]
[1729987718432,2.52693091,2481.4,2481.3,1.68887]
[1729987718831,2.12347091,2481.4,2481.3,1.68887]
[1729987719243,2.52693091,2481.4,2481.3,1.68887]
[1729987723537,2.12347091,2481.4,2481.3,1.68887]